bitfinex/quotes_SOLUSD_20230103
["timestamp","ask_amount","ask_price","bid_price","bid_amount"]
[1672754340597,30.0,12.02,12.014,46.28528642]
[1672754340913,30.0,12.018,12.014,46.28528642]
[1672754341440,111.7946,12.02,12.014,46.28528642]
[1672754341644,49.3346,12.02,12.014,46.71449975]
[1672754341861,49.3346,12.02,12.015,12.65987586]
[1672754342060,62.45,12.023,12.015,58.94516228]
[1672754342276,111.7746,12.025,12.016,46.28528642]
[1672754342489,49.3346,12.025,12.016,58.94516228]
[1672754342687,49.3346,12.025,12.017,63.71748093]
[1672754342900,49.3346,12.025,12.017,125.22986833]
[1672754343110,49.3346,12.025,12.018,145.22986833]
[1672754343436,49.3346,12.025,12.019,125.22986833]
[1672754343749,49.3346,12.025,12.02,74.17226326]
[1672754343965,49.3346,12.025,12.02,125.22986833]
[1672754344278,49.3346,12.025,12.021,74.17226326]
[1672754344471,49.3346,12.025,12.021,61.5123874]
[1672754345123,30.0,12.024,12.021,61.5123874]
[1672754358029,30.0,12.024,12.021,12.65987586]
[1672754358575,30.0,12.024,12.019,61.5123874]
[1672754358779,30.0,12.024,12.019,74.17226326]
[1672754358995,30.0,12.024,12.02,12.65987586]
[1672754359189,30.0,12.024,12.02,63.71748093]
[1672754359400,30.0,12.024,12.02,125.22986833]
[1672754359630,30.0,12.024,12.021,12.65987586]
[1672754359840,49.3346,12.025,12.021,12.65987586]
[1672754360042,49.3346,12.025,12.021,74.17226326]
[1672754360569,49.3346,12.025,12.022,12.65987586]
[1672754360890,49.3346,12.025,12.022,74.17226326]
[1672754361828,49.3346,12.025,12.022,61.5123874]
[1672754362031,49.3346,12.025,12.022,74.17226326]
[1672754363630,49.3346,12.025,12.022,61.5123874]
[1672754368025,30.0,12.024,12.018,20.0]
[1672754368245,30.0,12.024,12.018,81.5123874]
[1672754368991,30.0,12.024,12.019,12.65987586]
[1672754369516,30.0,12.024,12.02,61.5123874]
[1672754370131,30.0,12.024,12.02,74.17226326]
[1672754370874,30.0,12.024,12.021,61.5123874]
[1672754371090,79.3346,12.025,12.021,61.5123874]
[1672754371408,49.3346,12.025,12.022,12.65987586]
[1672754371808,49.3346,12.025,12.022,128.63241033]
[1672754372456,49.3346,12.025,12.022,74.17226326]
[1672754374354,30.0,12.024,12.022,61.5123874]
[1672754375613,30.0,12.024,12.02,12.65987586]
[1672754375930,30.0,12.024,12.01,12.54]
[1672754376121,30.0,12.022,12.01,12.54]
[1672754376331,163.2453,12.021,12.012,56.65905407]
[1672754376644,30.0,12.02,12.012,69.31892993]
[1672754376857,76.3413,12.02,12.012,69.31892993]
[1672754377083,76.3413,12.02,12.013,56.65905407]
[1672754378536,76.3413,12.02,12.013,69.31892993]
[1672754378753,46.3413,12.02,12.013,69.31892993]
[1672754378966,46.3413,12.02,12.014,56.65905407]
[1672754379283,46.3413,12.02,12.014,69.31892993]
[1672754379685,46.3413,12.02,12.015,56.65905407]
[1672754380945,46.3413,12.02,12.015,69.31892993]
[1672754382322,46.3413,12.02,12.015,56.65905407]
[1672754384843,46.3413,12.02,12.011,12.65987586]
[1672754385054,22.6655,12.019,12.012,56.65905407]
[1672754387054,22.6655,12.019,12.01,12.54]
[1672754387266,24.0216,12.018,12.011,12.65987586]
[1672754388742,24.0216,12.018,12.011,69.31892993]
[1672754388953,24.0216,12.018,12.011,12.65987586]
[1672754390217,24.0216,12.018,12.011,72.45250193]
[1672754390632,24.0216,12.018,12.011,12.65987586]
[1672754390837,24.0216,12.018,12.01,12.54]
[1672754391158,24.0216,12.018,12.004,83.93246101]
[1672754391159,82.48,12.017,12.0,63.06]
[1672754391484,78.27981109,12.016,12.005,12.65987586]
[1672754391696,92.49,12.015,12.005,12.65987586]
[1672754391892,127.39251109,12.014,12.005,12.65987586]
[1672754392105,30.0,12.012,12.005,12.65987586]
[1672754392308,78.27981109,12.011,12.005,12.65987586]
[1672754392748,78.27981109,12.015,12.005,106.87682713]
[1672754393064,110.3262,12.016,12.005,54.11330106]
[1672754393262,43.5988921,12.015,12.005,54.11330106]
[1672754393677,110.3262,12.016,12.006,20.0]
[1672754394109,110.3262,12.016,12.007,12.65987586]
[1672754394427,110.3262,12.016,12.008,20.0]
[1672754394956,110.3262,12.016,12.009,12.65987586]
[1672754395146,110.3262,12.016,12.01,20.0]
[1672754395592,110.3262,12.016,12.011,12.65987586]
[1672754396404,110.3262,12.016,12.01,20.0]
[1672754396618,30.0,12.015,12.006,20.0]
[1672754396841,62.49,12.014,12.006,20.0]
[1672754397049,82.75154453,12.013,12.006,20.0]
[1672754397370,82.75154453,12.013,12.002,20.0]
[1672754398089,82.75154453,12.013,12.001,20.0]
[1672754398509,82.75154453,12.013,12.001,32.65987586]
[1672754402522,110.3262,12.016,12.004,41.4534252]
[1672754402718,133.8499,12.016,12.01,12.61]
[1672754403265,133.8499,12.016,12.011,12.65987586]
[1672754403452,62.49,12.015,12.011,12.65987586]
[1672754403660,133.8499,12.016,12.011,12.65987586]
[1672754405341,62.45,12.022,12.012,60.69005765]
[1672754405556,62.44,12.024,12.013,30.0]
[1672754405773,62.44,12.024,12.014,20.0]
[1672754405967,62.44,12.024,12.014,129.8734929]
[1672754406178,62.44,12.024,12.015,68.89191045]
[1672754406389,62.44,12.024,12.016,20.0]
[1672754406601,62.44,12.024,12.016,32.65987586]
[1672754406810,62.44,12.024,12.017,12.65987586]
[1672754407034,62.44,12.024,12.018,20.0]
[1672754407449,62.44,12.024,12.019,12.65987586]
[1672754407649,62.44,12.024,12.02,20.0]
[1672754407856,92.44,12.025,12.02,20.0]
[1672754408070,92.44,12.025,12.021,12.65987586]
[1672754410400,62.44,12.025,12.021,12.65987586]
[1672754410614,62.44,12.025,12.021,70.34661045]
[1672754410824,85.0064,12.026,12.021,70.34661045]
[1672754411023,22.5764,12.026,12.022,12.65987586]
[1672754411435,22.5764,12.026,12.022,70.34661045]
[1672754411662,22.5764,12.026,12.022,167.56022749]
[1672754411877,22.5764,12.026,12.023,12.65987586]
[1672754412291,22.5764,12.026,12.024,57.68673459]
[1672754412715,22.5764,12.026,12.025,12.65987586]
[1672754412904,22.7456,12.027,12.025,12.65987586]
[1672754413443,22.7456,12.027,12.025,70.34661045]
[1672754414494,22.7456,12.027,12.025,57.68673459]
[1672754414698,22.7456,12.027,12.025,70.34661045]
[1672754414909,62.4,12.033,12.025,122.86790318]
[1672754415246,62.4,12.033,12.026,20.0]
[1672754415657,62.4,12.033,12.027,57.68673459]
[1672754415986,62.4,12.033,12.028,20.0]
[1672754416385,62.4,12.033,12.029,57.68673459]
[1672754416601,62.4,12.033,12.03,20.0]
[1672754416915,62.4,12.033,12.031,57.68673459]
[1672754417127,92.39,12.035,12.031,57.68673459]
[1672754417447,62.39,12.035,12.031,70.34661045]
[1672754417653,49.4511,12.036,12.031,70.34661045]
[1672754417867,49.4511,12.036,12.032,57.68673459]
[1672754418185,49.4511,12.036,12.033,12.65987586]
[1672754418615,49.4511,12.036,12.034,57.68673459]
[1672754418812,24.6571,12.036,12.034,57.68673459]
[1672754419030,24.6571,12.036,12.035,12.65987586]
[1672754419439,24.6571,12.036,12.035,70.34661045]
[1672754420079,62.36,12.039,12.035,70.34661045]
[1672754421138,92.36,12.04,12.035,70.34661045]
[1672754421661,92.36,12.04,12.036,12.65987586]
[1672754422191,30.0,12.04,12.036,70.34661045]
[1672754422406,62.36,12.04,12.036,70.34661045]
[1672754422589,62.35,12.042,12.037,32.65987586]
[1672754422800,62.34,12.044,12.037,32.65987586]
[1672754423023,92.33,12.045,12.038,70.34661045]
[1672754423236,92.33,12.045,12.039,20.0]
[1672754423452,30.0,12.045,12.039,90.34661045]
[1672754423873,30.0,12.045,12.039,77.68673459]
[1672754424488,30.0,12.045,12.04,12.65987586]
[1672754425341,30.0,12.045,12.04,57.68673459]
[1672754425550,62.34,12.044,12.037,52.52129273]
[1672754425865,62.34,12.044,12.035,12.65987586]
[1672754425866,30.0,12.043,12.035,12.65987586]
[1672754426055,62.35,12.042,12.035,12.65987586]
[1672754426269,30.0,12.041,12.035,70.34661045]
[1672754426477,62.36,12.04,12.035,70.34661045]
[1672754426704,116.1438,12.041,12.035,70.34661045]
[1672754426911,53.7938,12.041,12.036,12.65987586]
[1672754427323,53.7938,12.041,12.036,70.34661045]
[1672754428603,53.7938,12.041,12.037,12.65987586]
[1672754430286,53.7938,12.041,12.036,57.68673459]
[1672754430487,62.36,12.04,12.036,57.68673459]
[1672754430704,116.1438,12.041,12.036,57.68673459]
[1672754431951,86.1438,12.041,12.036,57.68673459]
[1672754432289,119.9865,12.042,12.037,32.65987586]
[1672754432692,85.874,12.045,12.038,12.65987586]
[1672754432906,85.874,12.045,12.039,20.0]
[1672754433117,85.874,12.045,12.039,77.68673459]
[1672754433541,85.874,12.045,12.039,90.57709889]
[1672754433742,85.874,12.045,12.04,12.65987586]
[1672754433947,85.874,12.045,12.039,90.57709889]
[1672754434804,85.874,12.045,12.04,12.65987586]
[1672754435949,23.544,12.045,12.04,12.65987586]
[1672754436159,23.544,12.045,12.039,90.57709889]
[1672754436576,47.9676,12.045,12.04,12.65987586]
[1672754437521,47.9676,12.045,12.041,12.86933097]
[1672754437946,24.4236,12.045,12.041,12.86933097]
[1672754438490,24.4236,12.045,12.039,77.68673459]
[1672754438798,62.34,12.044,12.039,77.68673459]
[1672754439008,86.7536,12.045,12.039,90.34661045]
[1672754439640,24.4236,12.045,12.039,90.34661045]
[1672754441002,24.4236,12.045,12.04,57.68673459]
[1672754441325,24.4236,12.045,12.041,12.65987586]
[1672754441742,24.4236,12.045,12.041,57.68673459]
[1672754445528,24.4236,12.045,12.042,12.85881692]
[1672754446166,24.4236,12.045,12.043,12.65987586]
[1672754446480,24.4236,12.045,12.044,57.68673459]
[1672754446694,23.0848,12.046,12.044,57.68673459]
[1672754447098,23.0848,12.046,12.044,70.34661045]
[1672754447306,111.8166,12.047,12.044,70.34661045]
[1672754449112,111.8166,12.047,12.045,57.68673459]
[1672754449518,111.8166,12.047,12.045,70.50902172]
[1672754449943,23.1423,12.049,12.045,70.50902172]
[1672754450588,23.1423,12.049,12.045,83.16889758]
[1672754450906,62.3,12.052,12.045,83.16889758]
[1672754451091,48.2105,12.056,12.046,77.68673459]
[1672754451509,30.0,12.052,12.047,57.68673459]
[1672754451737,30.0,12.052,12.045,12.82228713]
[1672754451935,116.1683,12.052,12.045,12.82228713]
[1672754452358,116.1683,12.052,12.045,57.68153459]
[1672754453524,116.1683,12.052,12.046,12.81178006]
[1672754453743,53.8683,12.052,12.046,12.81178006]
[1672754454347,53.8683,12.052,12.046,25.47165592]
[1672754454566,53.8683,12.052,12.046,12.81178006]
[1672754454994,116.1683,12.052,12.046,12.81178006]
[1672754456447,116.1683,12.052,12.03,93.11]
[1672754456657,30.0,12.05,12.033,20.0]
[1672754456973,62.31,12.049,12.034,82.52129273]
[1672754457182,30.0,12.048,12.035,20.0]
[1672754457496,30.0,12.048,12.035,133.11249206]
[1672754457497,62.32,12.047,12.035,133.11249206]
[1672754457705,110.6653,12.047,12.036,60.59119933]
[1672754457915,110.6653,12.047,12.037,20.0]
[1672754458143,110.6653,12.047,12.037,32.65987586]
[1672754458356,48.3453,12.046,12.037,32.65987586]
[1672754458670,48.3453,12.046,12.037,85.18116859]
[1672754458990,24.0791,12.045,12.037,133.11249206]
[1672754460022,24.0791,12.045,12.038,12.65987586]
[1672754460250,24.0791,12.045,12.039,20.0]
[1672754461169,24.0791,12.045,12.036,20.0]
[1672754461591,24.0791,12.045,12.033,47.93132347]
[1672754461592,30.0,12.044,12.033,47.93132347]
[1672754461819,30.0,12.042,12.032,52.52129273]
[1672754462148,108.6346,12.041,12.03,12.67]
[1672754462353,30.0,12.04,12.03,12.67]
[1672754462563,46.2846,12.039,12.028,52.52129273]
[1672754462765,30.0,12.038,12.028,52.52129273]
[1672754462982,46.2846,12.037,12.028,65.18116859]
[1672754463505,24.7711,12.036,12.028,65.18116859]
[1672754463919,24.7711,12.036,12.029,52.52129273]
[1672754464134,49.6795,12.036,12.03,12.61]
[1672754464353,49.6795,12.036,12.03,25.26987586]
[1672754464660,49.6795,12.036,12.03,77.79116859]
[1672754465494,49.6795,12.036,12.03,52.52129273]
[1672754466243,49.6795,12.036,12.031,12.65987586]
[1672754467184,49.6795,12.036,12.031,65.18116859]
[1672754467585,49.6795,12.036,12.032,12.65987586]
[1672754469061,49.6795,12.036,12.031,52.52129273]
[1672754469269,49.6795,12.036,12.032,52.52129273]
[1672754470212,49.6795,12.036,12.03,12.61]
[1672754471788,49.6795,12.036,12.028,100.4526162]
[1672754471999,23.3463,12.035,12.029,20.0]
[1672754472639,85.7363,12.035,12.029,20.0]
[1672754472863,30.0,12.034,12.022,20.0]
[1672754473171,30.0,12.032,12.022,20.0]
[1672754473591,62.4,12.033,12.023,52.52129273]
[1672754473800,62.4,12.033,12.024,20.0]
[1672754474432,62.4,12.033,12.024,72.52129273]
[1672754476304,30.0,12.032,12.024,120.4526162]
[1672754476640,30.0,12.032,12.024,72.52129273]
[1672754477472,30.0,12.032,12.024,20.0]
[1672754477683,30.0,12.032,12.022,20.0]
[1672754477899,30.0,12.032,12.024,52.52129273]
[1672754478088,30.0,12.032,12.025,20.0]
[1672754478519,30.0,12.032,12.026,12.65987586]
[1672754478948,62.4,12.033,12.026,12.65987586]
[1672754479172,30.0,12.034,12.027,20.0]
[1672754479350,23.3463,12.035,12.027,20.0]
[1672754479560,85.7363,12.035,12.028,12.65987586]
[1672754479771,85.7363,12.035,12.029,20.0]
[1672754480097,30.0,12.034,12.029,20.0]
[1672754480295,62.4,12.033,12.029,20.0]
[1672754480821,62.4,12.033,12.026,20.0]
[1672754481258,62.4,12.033,12.027,12.65987586]
[1672754481469,92.39,12.034,12.027,12.65987586]
[1672754481691,92.39,12.034,12.028,20.0]
[1672754482312,92.39,12.034,12.029,12.65987586]
[1672754482526,30.0,12.034,12.029,12.65987586]
[1672754482730,62.4,12.033,12.029,12.65987586]
[1672754482957,62.4,12.033,12.028,20.0]
[1672754483155,62.4,12.033,12.027,12.65987586]
[1672754483367,62.4,12.033,12.028,20.0]
[1672754483787,92.39,12.034,12.028,32.65987586]
[1672754484404,92.39,12.034,12.028,20.0]
[1672754484617,92.39,12.034,12.025,20.0]
[1672754484832,92.39,12.034,12.025,32.65987586]
[1672754485041,92.39,12.034,12.025,85.18116859]
[1672754485669,92.39,12.034,12.026,12.65987586]
[1672754485878,92.39,12.034,12.027,20.0]
[1672754486101,92.39,12.034,12.027,72.52129273]
[1672754486322,92.39,12.034,12.028,65.18116859]
[1672754486719,92.39,12.034,12.029,20.0]
[1672754486924,92.39,12.034,12.023,47.93132347]
[1672754487154,166.4435,12.033,12.02,12.49]
[1672754487463,92.4,12.032,12.02,65.01129273]
[1672754487678,30.0,12.03,12.02,52.52129273]
[1672754487885,30.0,12.028,12.02,52.52129273]
[1672754488097,24.3002,12.027,12.02,52.52129273]
[1672754488317,86.7302,12.027,12.02,52.52129273]
[1672754489144,30.0,12.026,12.02,65.18116859]
[1672754489566,62.44,12.025,12.02,52.52129273]
[1672754489972,54.4784,12.026,12.02,52.52129273]
[1672754489973,116.9084,12.026,12.02,52.52129273]
[1672754495231,86.9084,12.026,12.02,52.52129273]
[1672754495445,92.88,12.04,12.021,30.0]
[1672754495446,30.0,12.04,12.021,30.0]
[1672754495674,30.0,12.036,12.022,20.0]
[1672754495887,30.0,12.036,12.022,183.81751254]
[1672754496090,62.39,12.035,12.023,163.81751254]
[1672754496294,62.39,12.035,12.024,18.5]
[1672754496620,30.0,12.034,12.024,128.45160313]
[1672754496831,30.0,12.034,12.025,119.047078]
[1672754497263,30.0,12.034,12.026,119.047078]
[1672754497652,30.0,12.034,12.027,52.52129273]
[1672754498081,30.0,12.034,12.028,20.0]
[1672754498295,30.0,12.034,12.028,32.65987586]
[1672754498511,30.0,12.034,12.028,20.0]
[1672754500923,30.0,12.034,12.028,32.65987586]
[1672754504515,30.0,12.034,12.028,85.18116859]
[1672754504833,24.888,12.035,12.028,85.18116859]
[1672754505025,24.888,12.035,12.028,139.047078]
[1672754513547,24.888,12.035,12.03,12.54]
[1672754514073,24.888,12.035,12.031,12.65987586]
[1672754515014,24.888,12.035,12.031,119.047078]
[1672754516472,24.888,12.035,12.031,106.38720214]
[1672754516914,24.888,12.035,12.031,53.86590941]
[1672754517313,24.888,12.035,12.03,12.54]
[1672754517524,24.888,12.035,12.028,86.52578527]
[1672754517960,24.888,12.035,12.029,52.52129273]
[1672754518283,24.888,12.035,12.03,53.86590941]
[1672754518595,24.888,12.035,12.031,52.52129273]
[1672754518809,24.888,12.035,12.031,65.18116859]
[1672754519006,24.888,12.035,12.031,119.047078]
[1672754519860,24.888,12.035,12.031,106.38720214]
[1672754521006,24.888,12.035,12.028,32.65987586]
[1672754521007,24.888,12.035,12.028,20.0]
[1672754521218,30.0,12.033,12.027,52.52129273]
[1672754521530,30.0,12.033,12.028,20.0]
[1672754522267,30.0,12.033,12.028,32.65987586]
[1672754522676,30.0,12.033,12.028,72.52129273]
[1672754527634,30.0,12.033,12.028,85.18116859]
[1672754530371,30.0,12.033,12.028,20.0]
[1672754530677,30.0,12.033,12.025,12.65987586]
[1672754530885,30.0,12.033,12.026,20.0]
[1672754531712,30.0,12.033,12.027,52.52129273]
[1672754531927,30.0,12.033,12.028,20.0]
[1672754537298,24.888,12.035,12.028,139.047078]
[1672754537516,24.888,12.035,12.03,12.45]
[1672754538042,24.888,12.035,12.031,119.047078]
[1672754538443,24.888,12.035,12.032,65.18116859]
[1672754538865,24.888,12.035,12.033,12.65987586]
[1672754539315,24.888,12.035,12.033,65.18116859]
[1672754539612,24.888,12.035,12.034,25.59785593]
[1672754540229,24.888,12.035,12.034,79.46376534]
[1672754540556,23.3268,12.036,12.034,79.46376534]
[1672754541713,23.3268,12.036,12.035,12.65987586]
[1672754542112,110.6637,12.037,12.034,119.32518221]
[1672754548129,110.6637,12.037,12.035,12.65987586]
[1672754548539,23.0893,12.038,12.035,12.92745379]
[1672754549393,23.0893,12.038,12.035,65.44874652]
[1672754550020,23.0893,12.038,12.035,12.92745379]
[1672754550765,85.4593,12.038,12.035,12.92745379]
[1672754550959,30.0,12.037,12.035,12.92745379]
[1672754551590,28.5,12.037,12.035,12.92745379]
[1672754552556,28.5,12.037,12.031,52.52129273]
[1672754552770,53.3767,12.037,12.031,52.52129273]
[1672754553597,53.3767,12.037,12.032,12.95903788]
[1672754562334,24.8767,12.037,12.032,12.95903788]
[1672754562523,24.8767,12.037,12.032,25.61891374]
[1672754562737,24.8767,12.037,12.032,12.95903788]
[1672754564318,87.2567,12.037,12.032,12.95903788]
[1672754565168,30.0,12.036,12.032,12.95903788]
[1672754566514,29.0,12.036,12.032,12.95903788]
[1672754571280,8.2437235,12.036,12.032,12.95903788]
[1672754571490,54.8767,12.037,12.032,12.95903788]
[1672754571689,24.8767,12.037,12.032,12.95903788]
[1672754573481,24.8767,12.037,12.032,65.48033061]
[1672754573686,24.8767,12.037,12.033,53.86590941]
[1672754574644,24.8767,12.037,12.034,12.93798007]
[1672754575486,24.8767,12.037,12.033,53.86590941]
[1672754578003,24.8767,12.037,12.033,106.38720214]
[1672754578645,24.8767,12.037,12.034,12.93798007]
[1672754579480,24.8767,12.037,12.033,106.38720214]
[1672754579673,23.3767,12.037,12.033,106.38720214]
[1672754584108,23.3767,12.037,12.033,105.88720214]
[1672754588111,23.3767,12.037,12.033,105.38720214]
[1672754588938,23.3767,12.037,12.034,53.77924275]
[1672754589145,23.5087,12.045,12.035,20.0]
[1672754589349,48.0058,12.045,12.035,136.09676949]
[1672754589552,48.0058,12.045,12.036,113.09678698]
[1672754589885,48.0058,12.045,12.037,177.21613638]
[1672754590095,48.0058,12.045,12.038,20.0]
[1672754590303,48.0058,12.045,12.038,133.09678698]
[1672754590503,48.0058,12.045,12.039,113.09678698]
[1672754590713,48.0058,12.045,12.04,20.0]
[1672754591045,24.4971,12.045,12.04,176.71613638]
[1672754591349,24.4971,12.045,12.041,113.09678698]
[1672754591752,24.4971,12.045,12.042,53.77924275]
[1672754593026,24.4971,12.045,12.04,19.5]
[1672754593239,24.4971,12.045,12.039,53.77924275]
[1672754593447,24.4971,12.045,12.04,20.0]
[1672754594063,24.4971,12.045,12.04,73.77924275]
[1672754594280,24.4971,12.045,12.04,143.15666284]
[1672754594494,24.4971,12.045,12.04,186.77601224]
[1672754596104,24.4971,12.045,12.04,174.11613638]
[1672754596407,24.4971,12.045,12.04,73.27924275]
[1672754598302,24.4971,12.045,12.04,53.77924275]
[1672754599136,24.4971,12.045,12.037,53.63754423]
[1672754599356,24.4971,12.045,12.038,73.77924275]
[1672754600095,24.4971,12.045,12.039,53.77924275]
[1672754600399,24.4971,12.045,12.039,108.33012031]
[1672754600831,24.4971,12.045,12.04,53.77924275]
[1672754601143,24.4971,12.045,12.04,108.33012031]
[1672754601456,24.4971,12.045,12.041,53.77924275]
[1672754601970,22.9971,12.045,12.041,53.77924275]
[1672754603653,22.9971,12.045,12.038,19.0]
[1672754603848,22.9971,12.045,12.037,53.77924275]
[1672754604065,30.0,12.043,12.024,32.5182]
[1672754604273,30.0,12.041,12.026,12.65987586]
[1672754604486,177.1178,12.04,12.026,12.65987586]
[1672754604817,30.0,12.039,12.027,39.77901285]
[1672754605020,30.0,12.039,12.026,12.65987586]
[1672754605216,30.0,12.039,12.027,12.65987586]
[1672754606055,30.0,12.039,12.026,35.2126022]
[1672754606264,30.0,12.037,12.027,438.12276879]
[1672754606489,62.38,12.036,12.027,438.12276879]
[1672754606707,30.0,12.037,12.027,438.12276879]
[1672754606918,29.5,12.037,12.027,450.78264465]
[1672754607109,29.5,12.037,12.028,438.12276879]
[1672754607320,24.0446,12.036,12.028,438.12276879]
[1672754607758,24.0446,12.036,12.028,450.78264465]
[1672754607951,24.0446,12.035,12.029,437.94491175]
[1672754608373,24.0446,12.035,12.03,20.0]
[1672754615008,24.0446,12.035,12.03,32.65987586]
[1672754615850,24.0446,12.035,12.03,20.0]
[1672754616585,24.0446,12.035,12.027,12.65987586]
[1672754616586,24.0446,12.035,12.028,436.45491175]
[1672754618370,24.0446,12.035,12.029,166.72731885]
[1672754618570,62.39,12.034,12.03,20.0]
[1672754619307,62.39,12.034,12.025,20.0]
[1672754619517,24.0446,12.035,12.028,12.65987586]
[1672754620165,24.0446,12.035,12.029,20.0]
[1672754620474,24.0446,12.035,12.03,25.17987586]
[1672754620881,24.0446,12.035,12.03,12.52]
[1672754628360,42.57,12.05,12.03,153.25535142]
[1672754628570,24.3235,12.044,12.031,50.0]
[1672754628994,86.6635,12.044,12.032,90.49535142]
[1672754629301,83.6635,12.044,12.033,76.76989898]
[1672754629533,83.6635,12.044,12.033,110.49535142]
[1672754629702,21.3235,12.044,12.034,56.76989898]
[1672754629917,21.3235,12.044,12.035,20.0]
[1672754630123,21.3235,12.044,12.035,110.49535142]
[1672754630448,21.3235,12.044,12.036,56.76989898]
[1672754630649,21.3235,12.044,12.037,20.0]
[1672754630862,21.3235,12.044,12.037,64.11002312]
[1672754631506,21.3235,12.044,12.038,44.11002312]
[1672754631719,21.3235,12.044,12.039,20.0]
[1672754633612,21.3235,12.044,12.04,12.87484862]
[1672754639386,21.3235,12.044,12.041,39.86690026]
[1672754639601,243.03065728,12.071,12.044,12.65987586]
[1672754639602,30.0,12.061,12.044,12.65987586]
[1672754639795,30.0,12.052,12.042,67.26704435]
[1672754640128,76.4653,12.052,12.045,67.26704435]
[1672754640341,62.3,12.051,12.045,67.26704435]
[1672754640951,85.0686,12.051,12.045,67.26704435]
[1672754643695,85.0686,12.051,12.046,20.0]
[1672754643908,85.0686,12.051,12.043,12.84330649]
[1672754644117,23.7135,12.05,12.043,12.84330649]
[1672754644328,62.31,12.049,12.043,12.84330649]
[1672754644540,86.0235,12.049,12.043,12.84330649]
[1672754644733,23.7135,12.049,12.043,12.84330649]
[1672754644945,23.7135,12.049,12.043,65.83662242]
[1672754645154,24.0084,12.051,12.044,20.0]
[1672754645602,24.0084,12.051,12.045,109.74786623]
[1672754645789,24.0084,12.051,12.046,20.0]
[1672754646000,24.0084,12.051,12.046,76.7545503]
[1672754646204,24.0084,12.051,12.046,129.74786623]
[1672754646411,24.0084,12.051,12.047,56.7545503]
[1672754646638,24.0084,12.051,12.048,20.0]
[1672754646856,24.0084,12.051,12.048,72.99331593]
[1672754647075,24.0084,12.051,12.049,56.7545503]
[1672754648022,24.0084,12.051,12.049,109.74786623]
[1672754648858,24.0084,12.051,12.05,56.7545503]
[1672754649477,105.9121476,12.053,12.05,56.7545503]
[1672754649689,105.9121476,12.053,12.05,69.52431955]
[1672754649911,105.9121476,12.053,12.05,135.17751134]
[1672754650108,105.9121476,12.053,12.051,56.7545503]
[1672754651173,105.9121476,12.053,12.05,12.76976925]
[1672754652737,105.9121476,12.053,12.048,20.0]
[1672754653051,105.9121476,12.053,12.048,129.74786623]
[1672754653488,105.9121476,12.053,12.049,12.78026934]
[1672754654228,105.9121476,12.053,12.05,56.7545503]
[1672754654446,105.9121476,12.053,12.05,109.74786623]
[1672754654746,105.9121476,12.053,12.051,109.74786623]
[1672754655152,105.9121476,12.053,12.052,109.74786623]
[1672754655367,82.1986476,12.053,12.052,109.74786623]
[1672754656007,82.1986476,12.053,12.052,122.40774209]
[1672754656221,82.1986476,12.053,12.052,109.74786623]
[1672754656418,82.1986476,12.053,12.052,122.40774209]
[1672754656748,82.1986476,12.053,12.052,109.74786623]
[1672754657486,82.1986476,12.053,12.052,122.40774209]
[1672754657681,82.1986476,12.053,12.052,135.15651639]
[1672754659062,82.1986476,12.053,12.052,122.49664053]
[1672754659674,82.1986476,12.053,12.052,135.15651639]
[1672754660848,82.1986476,12.053,12.052,122.49664053]
[1672754663373,82.1986476,12.053,12.052,135.15651639]
[1672754663573,82.1986476,12.053,12.052,134.73249639]
[1672754663998,82.1986476,12.053,12.052,122.07262053]
[1672754676387,69.53877174,12.053,12.052,195.89831422]
[1672754678592,69.53877174,12.053,12.052,154.73249639]
[1672754679013,69.53877174,12.053,12.052,142.07262053]
[1672754679227,69.53877174,12.053,12.052,195.89831422]